[Event "Kragero Resort Chess B 2019"]
[Site "Kragero"]
[Date "2019.02.21"]
[Round "2.2"]
[White "Manukyan, Hayk T."]
[Black "Espeland, Jonatan"]
[Result "1-0"]
[ECO "A45"]
[WhiteElo "1806"]
[BlackElo "1634"]
[Annotator "NA"]
[PlyCount "129"]
[EventDate "2019.02.20"]
[EventType "swiss"]
[EventCountry "NOR"]
[SourceTitle "playchess.com"]
[Source "ChessBase"]
[SourceQuality "1"]
[TimeControl "5400+30"]

1. d4 {[%emt 0:00:00]} Nf6 {[%emt 0:00:00]} 2. Bg5 {[%emt 0:00:00]} Ne4 {[%emt 0:00:00]} 3. h4 {[%emt 0:00:00]} Nxg5 {[%emt 0:11:01]} 4. hxg5 {[%emt 0:00:00]} e6 {[%emt 0:00:19]} 5. f4 {[%emt 0:03:00]} d5 {[%emt 0:01:58]} 6. e3 {[%emt 0:00:48]} c5 {[%emt 0:05:00]} 7. c3 {[%emt 0:00:33]} Nc6 {[%emt 0:03:52]} 8. Bd3 {[%emt 0:00:22]} g6 {[%emt 0:01:47]} 9. a3 {[%emt 0:06:18]} c4 {[%emt 0:07:02]} 10. Bf1 {[%emt 0:09:28]} Qb6 {[%emt 0:06:13]} 11. Ra2 {[%emt 0:01:41]} Na5 {[%emt 0:03:48]} 12. Nd2 {[%emt 0:00:16]} Bd7 {[%emt 0:00:27]} 13. g3 {[%emt 0:00:15]} Nb3 {[%emt 0:02:03]} 14. Nxb3 {[%emt 0:00:20]} Ba4 {[%emt 0:00:13]} 15. Ra1 {[%emt 0:00:08]} Bxb3 {[%emt 0:04:26]} 16. Qe2 {[%emt 0:01:58]} Bg7 {[%emt 0:03:29]} 17. Bg2 {[%emt 0:01:25]} O-O-O {[%emt 0:04:48]} 18. Nf3 {[%emt 0:01:07]} h6 {[%emt 0:03:03]} 19. gxh6 {[%emt 0:00:47]} Rxh6 {[%emt 0:00:18]} 20. Rxh6 {[%emt 0:00:19]} Bxh6 {[%emt 0:00:02]} 21. Kf2 {[%emt 0:02:25]} Rh8 {[%emt 0:02:14]} 22. Rh1 {[%emt 0:00:12]} Bg7 {[%emt 0:01:23]} 23. Rxh8+ {[%emt 0:00:20]} Bxh8 {[%emt 0:00:02]} 24. e4 {[%emt 0:16:11]} dxe4 {[%emt 0:08:16]} 25. Nd2 {[%emt 0:01:21]} f5 {[%emt 0:13:32]} 26. Nxc4 {[%emt 0:00:14]} Bxc4 27. Qxc4+ {[%emt 0:00:01]} Qc6 {[%emt 0:00:08]} 28. Bf1 {[%emt 0:19:45]} Qxc4 {[%emt 0:08:37]} 29. Bxc4 {[%emt 0:00:03]} Kd7 {[%emt 0:00:02]} 30. g4 {[%emt 0:00:33]} Kd6 {[%emt 0:05:19]} 31. g5 {[%emt 0:00:11]} a6 {[%emt 0:00:04]} 32. b4 {[%emt 0:02:03]} b5 {[%emt 0:00:18]} 33. Bb3 {[%emt 0:00:06]} Bg7 {[%emt 0:00:28]} 34. a4 {[%emt 0:00:24]} Bf8 {[%emt 0:02:44]} 35. Ke3 {[%emt 0:00:14]} Be7 {[%emt 0:00:29]} 36. Bd1 {[%emt 0:03:00]} Bd8 {[%emt 0:01:07]} 37. axb5 {[%emt 0:01:47]} axb5 {[%emt 0:00:02]} 38. Bb3 {[%emt 0:00:28]} Bb6 {[%emt 0:01:56]} 39. Bd1 {[%emt 0:00:09]} Ba7 {[%emt 0:00:52]} 40. Be2 {[%emt 0:00:12]} Kc6 {[%emt 0:00:06]} 41. Bh5 {[%emt 0:02:28]} Kd5 {[%emt 0:01:11]} 42. Bxg6 {[%emt 0:01:00]} Kc4 {[%emt 0:00:17]} 43. Bf7 {[%emt 0:03:27]} Kxc3 {[%emt 0:00:28]} 44. Bxe6 {[%emt 0:00:01]} Bxd4+ {[%emt 0:00:21]} 45. Ke2 {[%emt 0:00:01]} Kxb4 {[%emt 0:01:20]} 46. Bxf5 {[%emt 0:00:02]} Kc5 {[%emt 0:01:09]} 47. Bxe4 {[%emt 0:00:07]} Kd6 {[%emt 0:00:39]} 48. Kf3 {[%emt 0:00:09]} Ke7 {[%emt 0:00:31]} 49. Kg4 {[%emt 0:00:16]} Kf7 {[%emt 0:00:09]} 50. Kh5 {[%emt 0:00:36]} Be3 {[%emt 0:00:47]} 51. Kg4 {[%emt 0:01:16]} Kg7 {[%emt 0:00:26]} 52. Bd5 {[%emt 0:00:31]} Bd2 {[%emt 0:00:34]} 53. Bb3 {[%emt 0:00:15]} Be3 {[%emt 0:00:14]} 54. Kf5 {[%emt 0:00:36]} Bf2 {[%emt 0:00:41]} 55. Ke4 {[%emt 0:01:00]} Kg6 {[%emt 0:00:37]} 56. Bc2 {[%emt 0:00:36]} Kf7 {[%emt 0:00:30]} 57. f5 {[%emt 0:01:41]} Bh4 {[%emt 0:00:29]} 58. Kf4 {[%emt 0:00:24]} Be1 {[%emt 0:00:34]} 59. Bb3+ {[%emt 0:00:33]} Kg7 {[%emt 0:00:26]} 60. f6+ {[%emt 0:00:09]} Kg6 {[%emt 0:00:21]} 61. Bc2+ {[%emt 0:00:02]} Kf7 {[%emt 0:00:38]} 62. Kf5 {[%emt 0:00:06]} Bc3 {[%emt 0:00:31]} 63. g6+ {[%emt 0:00:19]} Kg8 {[%emt 0:00:32]} 64. Bb3+ {[%emt 0:00:05]} Kh8 {[%emt 0:00:21]} 65. g7+ {[%emt 0:00:05] Bd2 [%emt 00:00:18]} 1-0

[Event "Kragero Resort Chess B 2019"]
[Site "Kragero"]
[Date "2019.02.21"]
[Round "2.3"]
[White "Erikstad, Olav"]
[Black "Lorentzen, Jan Ove"]
[Result "1-0"]
[ECO "B12"]
[WhiteElo "1777"]
[BlackElo "1604"]
[Annotator "NA"]
[PlyCount "29"]
[EventDate "2019.02.20"]
[EventType "swiss"]
[EventCountry "NOR"]
[SourceTitle "playchess.com"]
[Source "ChessBase"]
[SourceQuality "1"]
[TimeControl "5400+30"]

1. e4 {[%emt 0:00:00]} c6 {[%emt 0:00:14]} 2. d4 {[%emt 0:00:00]} d5 {[%emt 0:00:05]} 3. e5 {[%emt 0:00:00]} Bf5 {[%emt 0:00:13]} 4. g4 {[%emt 0:00:00]} Bg6 {[%emt 0:02:08]} 5. h4 {[%emt 0:00:05]} h6 {[%emt 0:00:01]} 6. h5 {[%emt 0:00:05]} Bh7 {[%emt 0:00:15]} 7. e6 {[%emt 0:00:02]} fxe6 {[%emt 0:01:28]} 8. Bd3 {[%emt 0:00:10]} Bxd3 {[%emt 0:02:26]} 9. Qxd3 {[%emt 0:00:03]} Kd7 {[%emt 0:03:08]} 10. Nf3 {[%emt 0:00:41]} Qe8 {[%emt 0:01:44]} 11. Ne5+ {[%emt 0:00:20]} Kc8 {[%emt 0:00:49]} 12. Ng6 {[%emt 0:00:15]} Nf6 {[%emt 0:02:47]} 13. Nxh8 {[%emt 0:00:26]} Nxg4 {[%emt 0:00:06]} 14. Qg6 {[%emt 0:00:24]} Qxg6 {[%emt 0:00:23]} 15. Nxg6 {[%emt 0:00:12]} 1-0

[Event "Kragero Resort Chess B 2019"]
[Site "Kragero"]
[Date "2019.02.21"]
[Round "2.4"]
[White "Nordquelle, Amelia"]
[Black "Fjellheim, Benjamin"]
[Result "1-0"]
[ECO "D21"]
[WhiteElo "1585"]
[BlackElo "1757"]
[Annotator "NA"]
[PlyCount "45"]
[EventDate "2019.02.20"]
[EventType "swiss"]
[EventCountry "NOR"]
[SourceTitle "playchess.com"]
[Source "ChessBase"]
[SourceQuality "1"]
[TimeControl "5400+30"]

1. d4 {[%emt 0:00:00]} d5 {[%emt 0:00:13]} 2. c4 {[%emt 0:00:00]} dxc4 {[%emt 0:00:10]} 3. Nf3 {[%emt 0:00:00]} a6 {[%emt 0:00:12]} 4. e4 {[%emt 0:00:30]} b5 {[%emt 0:00:43]} 5. a4 {[%emt 0:00:22]} Bb7 {[%emt 0:02:25]} 6. axb5 {[%emt 0:01:39]} axb5 {[%emt 0:00:16]} 7. Rxa8 {[%emt 0:00:20]} Bxa8 {[%emt 0:00:02]} 8. Nc3 {[%emt 0:00:51]} e6 {[%emt 0:13:33]} 9. Nxb5 {[%emt 0:01:34]} Bxe4 {[%emt 0:01:23]} 10. Bxc4 {[%emt 0:01:34]} Bb4+ {[%emt 0:03:59]} 11. Ke2 {[%emt 0:03:23]} Nf6 {[%emt 0:04:15]} 12. Qa4 {[%emt 0:01:45]} c6 {[%emt 0:10:12]} 13. Qxb4 {[%emt 0:02:30]} cxb5 {[%emt 0:00:03]} 14. Bxb5+ {[%emt 0:00:21]} Nbd7 {[%emt 0:00:33]} 15. Ne5 {[%emt 0:03:14]} Qe7 {[%emt 0:15:59]} 16. Qa4 {[%emt 0:02:10]} O-O {[%emt 0:03:24]} 17. Nxd7 {[%emt 0:00:25]} Ra8 {[%emt 0:02:02]} 18. Nxf6+ Qxf6 {[%emt 0:00:01]} 19. Qc4 {[%emt 0:00:57]} Bxg2 {[%emt 0:00:51]} 20. Bc6 {[%emt 0:01:07]} Rc8 {[%emt 0:00:55]} 21. Qa6 {[%emt 0:00:30]} Rxc6 {[%emt 0:06:55]} 22. Qa8+ {[%emt 0:00:23]} Qd8 {[%emt 0:00:02]} 23. Qxd8# {[%emt 0:00:17]} 1-0

[Event "Kragero Resort Chess B 2019"]
[Site "Kragero"]
[Date "2019.02.21"]
[Round "2.5"]
[White "Hausken, Andreas Skrede"]
[Black "Shehzad, Alisha"]
[Result "1-0"]
[ECO "B26"]
[WhiteElo "1752"]
[BlackElo "1579"]
[Annotator "NA"]
[PlyCount "71"]
[EventDate "2019.02.20"]
[EventType "swiss"]
[EventCountry "NOR"]
[SourceTitle "playchess.com"]
[Source "ChessBase"]
[SourceQuality "1"]
[TimeControl "5400+30"]

1. e4 {[%emt 0:00:00]} c5 {[%emt 0:00:00]} 2. Nc3 {[%emt 0:00:00]} g6 {[%emt 0:00:00]} 3. g3 {[%emt 0:01:51]} Nc6 {[%emt 0:00:14]} 4. Bg2 {[%emt 0:00:11]} Bg7 {[%emt 0:00:31]} 5. d3 {[%emt 0:02:09]} e6 {[%emt 0:02:14]} 6. Be3 {[%emt 0:05:34]} d6 {[%emt 0:00:13]} 7. Nge2 {[%emt 0:00:34]} Nge7 {[%emt 0:00:53]} 8. O-O {[%emt 0:02:23]} O-O {[%emt 0:01:24]} 9. Qd2 {[%emt 0:03:45]} Nd4 {[%emt 0:06:07]} 10. h4 {[%emt 0:11:58]} Rb8 {[%emt 0:10:08]} 11. a4 {[%emt 0:13:12]} a6 {[%emt 0:02:08]} 12. Bg5 {[%emt 0:07:22]} Qc7 {[%emt 0:05:46]} 13. h5 {[%emt 0:10:54]} b5 {[%emt 0:04:09]} 14. h6 {[%emt 0:07:13]} Bh8 {[%emt 0:02:15]} 15. axb5 {[%emt 0:00:32]} axb5 {[%emt 0:01:03]} 16. f4 {[%emt 0:03:05]} b4 {[%emt 0:04:49]} 17. Na4 {[%emt 0:03:20]} Nec6 {[%emt 0:03:33]} 18. Nxd4 {[%emt 0:04:43]} Nxd4 {[%emt 0:02:18]} 19. Bh3 {[%emt 0:02:07]} Bd7 {[%emt 0:05:47]} 20. Qd1 {[%emt 0:03:19]} Ra8 {[%emt 0:08:39]} 21. b3 {[%emt 0:02:11]} Nb5 {[%emt 0:06:56]} 22. Rc1 {[%emt 0:00:08]} Bd4+ {[%emt 0:04:59]} 23. Kh2 {[%emt 0:00:28]} Be3 {[%emt 0:05:31]} 24. Ra1 {[%emt 0:00:25]} Bd4 {[%emt 0:00:36]} 25. Ra2 {[%emt 0:01:56]} Rxa4 {[%emt 0:02:45]} 26. Rxa4 {[%emt 0:00:55]} Nc3 {[%emt 0:00:28]} 27. Qf3 {[%emt 0:00:30]} Nxa4 {[%emt 0:01:47]} 28. bxa4 {[%emt 0:00:07]} Bxa4 {[%emt 0:01:54]} 29. f5 {[%emt 0:00:17]} exf5 {[%emt 0:01:30]} 30. exf5 {[%emt 0:02:07]} Qb8 {[%emt 0:05:08]} 31. fxg6 {[%emt 0:00:34]} hxg6 {[%emt 0:01:37]} 32. Bf6 {[%emt 0:01:03]} Qa8 {[%emt 0:01:53]} 33. Qf4 {[%emt 0:00:58]} Qe8 {[%emt 0:01:48]} 34. h7+ {[%emt 0:02:47]} Kxh7 {[%emt 0:00:45]} 35. Qh4+ {[%emt 0:00:06]} Kg8 {[%emt 0:00:12]} 36. Qh8# {[%emt 0:00:07]} 1-0

[Event "Kragero Resort Chess B 2019"]
[Site "Kragero"]
[Date "2019.02.21"]
[Round "2.6"]
[White "Wright, Haakon"]
[Black "Gudmundsson, Thordur"]
[Result "1-0"]
[ECO "A13"]
[WhiteElo "1750"]
[BlackElo "1548"]
[Annotator "NA"]
[PlyCount "95"]
[EventDate "2019.02.20"]
[EventType "swiss"]
[EventCountry "NOR"]
[SourceTitle "playchess.com"]
[Source "ChessBase"]
[SourceQuality "1"]
[TimeControl "5400+30"]

1. c4 {[%emt 0:00:00]} e6 {[%emt 0:00:00]} 2. g3 {[%emt 0:00:00]} Nf6 {[%emt 0:01:03]} 3. Bg2 {[%emt 0:00:00]} d5 {[%emt 0:00:37]} 4. Nf3 {[%emt 0:00:00]} Be7 {[%emt 0:02:39]} 5. O-O {[%emt 0:00:42]} O-O {[%emt 0:00:12]} 6. cxd5 {[%emt 0:02:54]} exd5 {[%emt 0:00:16]} 7. d3 {[%emt 0:01:23]} c6 {[%emt 0:02:22]} 8. Nc3 {[%emt 0:02:41]} Na6 {[%emt 0:05:49]} 9. Bf4 {[%emt 0:00:45]} Bd6 {[%emt 0:10:20]} 10. Bxd6 {[%emt 0:01:29]} Qxd6 {[%emt 0:00:31]} 11. a3 {[%emt 0:02:52]} Re8 {[%emt 0:02:55]} 12. b4 {[%emt 0:00:40]} Nc7 {[%emt 0:02:29]} 13. Rb1 {[%emt 0:02:57]} a5 {[%emt 0:02:04]} 14. Nd4 {[%emt 0:17:46]} axb4 {[%emt 0:02:25]} 15. axb4 {[%emt 0:01:26]} Qe5 {[%emt 0:06:14]} 16. e3 {[%emt 0:03:33]} Ne6 {[%emt 0:01:14]} 17. Nxe6 {[%emt 0:04:25]} Bxe6 {[%emt 0:02:53]} 18. d4 {[%emt 0:00:16]} Qd6 {[%emt 0:00:37]} 19. b5 {[%emt 0:05:02]} Rec8 {[%emt 0:13:13]} 20. bxc6 {[%emt 0:03:41]} Qxc6 {[%emt 0:09:12]} 21. Ne2 {[%emt 0:03:54]} Qd7 {[%emt 0:04:01]} 22. Qb3 {[%emt 0:03:31]} Rab8 {[%emt 0:04:02]} 23. Nc3 {[%emt 0:02:36]} Bf5 {[%emt 0:04:15]} 24. Rb2 {[%emt 0:04:20]} Bd3 {[%emt 0:00:11]} 25. Ra1 {[%emt 0:04:44]} Bc4 {[%emt 0:01:03]} 26. Qb4 {[%emt 0:00:45]} h6 {[%emt 0:04:13]} 27. Na4 {[%emt 0:08:42]} Ra8 {[%emt 0:01:13]} 28. Rbb1 {[%emt 0:02:03]} Qd8 {[%emt 0:07:29]} 29. Nb6 {[%emt 0:01:15]} Rxa1 {[%emt 0:00:11]} 30. Rxa1 {[%emt 0:00:01]} Rb8 {[%emt 0:00:43]} 31. Nxc4 {[%emt 0:01:06]} dxc4 {[%emt 0:00:46]} 32. Qxc4 {[%emt 0:00:41]} b5 {[%emt 0:01:21]} 33. Qb3 {[%emt 0:01:13]} b4 {[%emt 0:00:28]} 34. Ra7 {[%emt 0:01:50]} Qf8 {[%emt 0:03:43]} 35. e4 {[%emt 0:02:43]} Ra8 {[%emt 0:01:35]} 36. Ra4 {[%emt 0:04:12]} Rxa4 {[%emt 0:00:46]} 37. Qxa4 {[%emt 0:00:02]} Qb8 {[%emt 0:01:23]} 38. e5 {[%emt 0:02:30]} Ne8 {[%emt 0:01:15]} 39. Qa8 {[%emt 0:01:18]} Qxa8 {[%emt 0:00:54]} 40. Bxa8 {[%emt 0:00:02]} Nc7 {[%emt 0:00:29]} 41. Be4 {[%emt 0:00:27]} Nb5 {[%emt 0:01:25]} 42. d5 {[%emt 0:02:36]} Nc3 {[%emt 0:00:34]} 43. d6 {[%emt 0:00:22]} Kf8 {[%emt 0:00:32]} 44. Bc2 {[%emt 0:02:42]} Ne2+ {[%emt 0:01:14]} 45. Kf1 {[%emt 0:01:59]} Nd4 {[%emt 0:00:07]} 46. Be4 {[%emt 0:01:06]} b3 {[%emt 0:00:32]} 47. Ke1 {[%emt 0:00:28]} Nb5 {[%emt 0:00:41]} 48. Kd2 {[%emt 0:02:28]} 1-0

[Event "Kragero Resort Chess B 2019"]
[Site "Kragero"]
[Date "2019.02.21"]
[Round "2.7"]
[White "Frovik, Einar Clausen"]
[Black "Leonhardsen, Vebjorn Maanum"]
[Result "1/2-1/2"]
[ECO "B19"]
[WhiteElo "1555"]
[BlackElo "1748"]
[Annotator "NA"]
[PlyCount "98"]
[EventDate "2019.02.20"]
[EventType "swiss"]
[EventCountry "NOR"]
[SourceTitle "playchess.com"]
[Source "ChessBase"]
[SourceQuality "1"]
[TimeControl "5400+30"]

1. e4 {[%emt 0:00:00]} c6 {[%emt 0:01:42]} 2. d4 {[%emt 0:00:00]} d5 {[%emt 0:00:05]} 3. Nc3 {[%emt 0:00:00]} dxe4 {[%emt 0:00:05]} 4. Nxe4 {[%emt 0:00:00]} Bf5 {[%emt 0:02:31]} 5. Ng3 {[%emt 0:00:03]} Bg6 {[%emt 0:00:04]} 6. h4 {[%emt 0:00:10]} h6 {[%emt 0:00:08]} 7. h5 {[%emt 0:01:10]} Bh7 {[%emt 0:00:05]} 8. Nf3 {[%emt 0:00:20]} Nf6 {[%emt 0:00:46]} 9. Bd3 {[%emt 0:01:41]} Bxd3 {[%emt 0:00:04]} 10. Qxd3 {[%emt 0:00:05]} e6 {[%emt 0:00:22]} 11. Bf4 {[%emt 0:03:51]} Bb4+ {[%emt 0:00:43]} 12. c3 {[%emt 0:00:28]} Bd6 {[%emt 0:00:10]} 13. Ne5 {[%emt 0:07:03]} Qc7 {[%emt 0:01:34]} 14. Ne4 {[%emt 0:02:16]} Nxe4 {[%emt 0:02:32]} 15. Qxe4 {[%emt 0:01:14]} Nd7 {[%emt 0:02:45]} 16. Nd3 {[%emt 0:03:02]} Nf6 {[%emt 0:03:26]} 17. Bxd6 {[%emt 0:06:00]} Qxd6 {[%emt 0:00:08]} 18. Qe5 {[%emt 0:01:09]} Qxe5+ {[%emt 0:03:35]} 19. Nxe5 {[%emt 0:04:51]} Rd8 {[%emt 0:01:10]} 20. f3 {[%emt 0:03:46]} Ke7 {[%emt 0:00:22]} 21. a4 {[%emt 0:01:43]} Nd7 {[%emt 0:04:36]} 22. O-O-O {[%emt 0:07:20]} Nxe5 {[%emt 0:00:47]} 23. dxe5 {[%emt 0:00:07]} Rd5 {[%emt 0:00:40]} 24. Rxd5 {[%emt 0:03:26]} exd5 {[%emt 0:01:41]} 25. g4 {[%emt 0:01:13]} Ke6 {[%emt 0:01:59]} 26. f4 {[%emt 0:07:12]} c5 {[%emt 0:02:06]} 27. Kd2 {[%emt 0:01:40]} Rb8 {[%emt 0:03:17]} 28. Kd3 {[%emt 0:06:03]} f6 {[%emt 0:07:38]} 29. Re1 {[%emt 0:01:26]} fxe5 {[%emt 0:00:35]} 30. Rxe5+ {[%emt 0:01:23]} Kd6 {[%emt 0:00:11]} 31. c4 {[%emt 0:08:10]} d4 {[%emt 0:02:10]} 32. Ke4 {[%emt 0:00:44]} b6 {[%emt 0:01:07]} 33. f5 {[%emt 0:07:09]} Kd7 {[%emt 0:02:43]} 34. Kf4 {[%emt 0:09:28]} Re8 {[%emt 0:02:27]} 35. Rd5+ {[%emt 0:01:35]} Ke7 {[%emt 0:04:26]} 36. g5 {[%emt 0:00:18]} hxg5+ {[%emt 0:02:13]} 37. Kxg5 {[%emt 0:00:11]} Rd8 {[%emt 0:03:59]} 38. Rxd8 {[%emt 0:03:06]} Kxd8 {[%emt 0:00:04]} 39. h6 {[%emt 0:00:06]} gxh6+ {[%emt 0:00:16]} 40. Kxh6 {[%emt 0:00:07]} d3 {[%emt 0:00:09]} 41. f6 {[%emt 0:00:05]} d2 {[%emt 0:00:21]} 42. f7 {[%emt 0:00:06]} d1=Q {[%emt 0:00:43]} 43. f8=Q+ {[%emt 0:00:27]} Kc7 {[%emt 0:00:31]} 44. Qe7+ {[%emt 0:04:21]} Kb8 {[%emt 0:03:14]} 45. Qe8+ {[%emt 0:06:21]} Kb7 {[%emt 0:00:21]} 46. Qb5 {[%emt 0:00:40]} a6 {[%emt 0:03:40]} 47. Qe8 {[%emt 0:00:03]} Qd2+ {[%emt 0:01:42]} 48. Kg6 {[%emt 0:00:46]} Qd3+ {[%emt 0:01:48]} 49. Kh5 {[%emt 0:00:34]} Qd1+ {[%emt 0:00:39]} 1/2-1/2

[Event "Kragero Resort Chess B 2019"]
[Site "Kragero"]
[Date "2019.02.21"]
[Round "2.8"]
[White "Rynning, Rune Kleiven"]
[Black "Bernstein, Jonas August"]
[Result "0-1"]
[ECO "B17"]
[WhiteElo "1542"]
[BlackElo "1744"]
[Annotator "NA"]
[PlyCount "106"]
[EventDate "2019.02.20"]
[EventType "swiss"]
[EventCountry "NOR"]
[SourceTitle "playchess.com"]
[Source "ChessBase"]
[SourceQuality "1"]
[TimeControl "5400+30"]

1. e4 {[%emt 0:00:00]} c6 {[%emt 0:04:22]} 2. d4 {[%emt 0:00:00]} d5 {[%emt 0:00:15]} 3. Nc3 {[%emt 0:00:42]} dxe4 {[%emt 0:00:16]} 4. Nxe4 {[%emt 0:00:09]} Nd7 {[%emt 0:00:07]} 5. Nf3 {[%emt 0:01:42]} Ngf6 {[%emt 0:00:09]} 6. Nxf6+ {[%emt 0:01:48]} Nxf6 {[%emt 0:00:02]} 7. Bg5 {[%emt 0:02:39]} Ne4 {[%emt 0:08:06]} 8. Bh4 {[%emt 0:01:49]} Bg4 {[%emt 0:09:03]} 9. Be2 {[%emt 0:06:42]} Qd6 {[%emt 0:04:21]} 10. O-O {[%emt 0:04:18]} e6 {[%emt 0:01:09]} 11. Qd3 {[%emt 0:09:01]} Bf5 {[%emt 0:02:19]} 12. Qb3 {[%emt 0:01:47]} Qc7 {[%emt 0:01:19]} 13. Rad1 {[%emt 0:03:06]} Bd6 {[%emt 0:02:04]} 14. c4 {[%emt 0:04:28]} O-O {[%emt 0:09:39]} 15. c5 {[%emt 0:10:52]} Be7 {[%emt 0:02:58]} 16. Bxe7 {[%emt 0:00:50]} Qxe7 {[%emt 0:00:02]} 17. Ne5 {[%emt 0:01:01]} Nf6 {[%emt 0:06:17]} 18. Nc4 {[%emt 0:04:37]} Be4 {[%emt 0:14:52]} 19. Nd6 {[%emt 0:01:12]} Bd5 {[%emt 0:02:13]} 20. Qxb7 {[%emt 0:06:36]} Qxb7 {[%emt 0:00:19]} 21. Nxb7 {[%emt 0:00:08]} Rfb8 {[%emt 0:00:27]} 22. Na5 {[%emt 0:13:15]} Rxb2 {[%emt 0:01:11]} 23. Bc4 {[%emt 0:03:00]} Bxc4 {[%emt 0:01:28]} 24. Nxc4 {[%emt 0:00:03]} Rxa2 {[%emt 0:00:22]} 25. Ne5 {[%emt 0:01:14]} Rc8 {[%emt 0:02:37]} 26. Rb1 {[%emt 0:00:32]} g6 {[%emt 0:08:58]} 27. Rb7 {[%emt 0:04:04]} Rd2 {[%emt 0:06:08]} 28. Rxa7 {[%emt 0:07:32]} Rxd4 {[%emt 0:00:18]} 29. Nxf7 {[%emt 0:00:16]} Rd7 {[%emt 0:02:43]} 30. Rxd7 {[%emt 0:01:41]} Nxd7 {[%emt 0:00:01]} 31. Nd6 {[%emt 0:00:40]} Ra8 {[%emt 0:03:03]} 32. Ne4 {[%emt 0:01:23]} Ra4 {[%emt 0:01:20]} 33. f3 {[%emt 0:03:39]} Rc4 {[%emt 0:00:16]} 34. Re1 {[%emt 0:01:28]} e5 {[%emt 0:01:22]} 35. Kf2 {[%emt 0:00:35]} Nxc5 {[%emt 0:00:34]} 36. Nf6+ {[%emt 0:00:35]} Kf7 {[%emt 0:00:58]} 37. Nxh7 {[%emt 0:01:21]} Nd3+ {[%emt 0:00:09]} 38. Ke2 {[%emt 0:00:14]} Nxe1 {[%emt 0:00:13]} 39. Kxe1 {[%emt 0:00:02]} Rc2 {[%emt 0:01:44]} 40. Ng5+ {[%emt 0:00:15]} Ke7 {[%emt 0:00:45]} 41. Kf1 {[%emt 0:00:10]} c5 {[%emt 0:00:28]} 42. h4 {[%emt 0:00:44]} c4 {[%emt 0:00:24]} 43. g4 {[%emt 0:00:12]} Rh2 {[%emt 0:01:05]} 44. Ke1 {[%emt 0:00:07]} Kd6 {[%emt 0:02:29]} 45. Ne4+ {[%emt 0:00:27]} Kd5 {[%emt 0:00:50]} 46. h5 {[%emt 0:00:15]} gxh5 {[%emt 0:00:22]} 47. gxh5 {[%emt 0:00:09]} Kd4 {[%emt 0:00:32]} 48. Ng3 {[%emt 0:01:03]} Kd3 {[%emt 0:00:51]} 49. Kd1 {[%emt 0:01:46]} Rg2 {[%emt 0:00:36]} 50. Nf1 {[%emt 0:00:18]} Rg1 {[%emt 0:00:36]} 51. Ke1 {[%emt 0:00:09]} c3 {[%emt 0:00:24]} 52. Kf2 {[%emt 0:00:10]} Rxf1+ {[%emt 0:00:49]} 53. Kxf1 {[%emt 0:00:19]} c2 {[%emt 0:00:03]} 0-1

[Event "Kragero Resort Chess B 2019"]
[Site "Kragero"]
[Date "2019.02.21"]
[Round "3.1"]
[White "Omtvedt, Per"]
[Black "Becher, Adrian"]
[Result "1/2-1/2"]
[ECO "B08"]
[WhiteElo "1918"]
[BlackElo "1642"]
[Annotator "NA"]
[PlyCount "95"]
[EventDate "2019.02.20"]
[EventType "swiss"]
[EventCountry "NOR"]
[SourceTitle "playchess.com"]
[Source "ChessBase"]
[SourceQuality "1"]
[TimeControl "5400+30"]

1. e4 {[%emt 0:00:00]} d6 {[%emt 0:00:00]} 2. d4 {[%emt 0:00:26]} Nf6 {[%emt 0:00:00]} 3. Nc3 {[%emt 0:00:30]} g6 {[%emt 0:00:05]} 4. Nf3 {[%emt 0:04:20]} Bg7 {[%emt 0:00:16]} 5. Be2 {[%emt 0:00:16]} O-O {[%emt 0:01:19]} 6. O-O {[%emt 0:00:12]} Bg4 {[%emt 0:00:26]} 7. Be3 {[%emt 0:00:40]} Nc6 {[%emt 0:07:40]} 8. d5 {[%emt 0:05:52]} Bxf3 {[%emt 0:01:36]} 9. gxf3 {[%emt 0:02:27]} Ne5 {[%emt 0:04:43]} 10. f4 {[%emt 0:00:44]} Ned7 {[%emt 0:00:45]} 11. Qd2 {[%emt 0:00:51]} e6 {[%emt 0:05:57]} 12. dxe6 {[%emt 0:03:43]} fxe6 {[%emt 0:00:41]} 13. Bc4 {[%emt 0:00:26]} Qe7 {[%emt 0:17:42]} 14. f5 {[%emt 0:04:18]} gxf5 {[%emt 0:01:00]} 15. exf5 {[%emt 0:00:10]} d5 {[%emt 0:04:12]} 16. fxe6 {[%emt 0:00:35]} dxc4 {[%emt 0:07:44]} 17. exd7 {[%emt 0:01:05]} Nxd7 {[%emt 0:04:47]} 18. Rae1 {[%emt 0:09:51]} Qf7 {[%emt 0:06:50]} 19. Qd5 {[%emt 0:07:51]} Bxc3 {[%emt 0:07:44]} 20. Qxf7+ {[%emt 0:00:17]} Kxf7 {[%emt 0:01:05]} 21. bxc3 {[%emt 0:00:15]} Ne5 {[%emt 0:02:27]} 22. f4 {[%emt 0:00:55]} Rg8+ {[%emt 0:01:54]} 23. Kh1 {[%emt 0:00:17]} Ng4 {[%emt 0:02:46]} 24. Bd4 {[%emt 0:04:50]} b6 {[%emt 0:03:16]} 25. h3 {[%emt 0:02:42]} Nf6 {[%emt 0:02:05]} 26. Kh2 {[%emt 0:03:31]} Rad8 {[%emt 0:03:30]} 27. Rf2 {[%emt 0:01:56]} c5 {[%emt 0:01:42]} 28. Be5 {[%emt 0:01:06]} Rd7 {[%emt 0:03:06]} 29. Bxf6 {[%emt 0:11:14]} Kxf6 {[%emt 0:00:11]} 30. Re4 {[%emt 0:00:11]} b5 {[%emt 0:03:03]} 31. a4 {[%emt 0:00:50]} a6 {[%emt 0:01:53]} 32. axb5 {[%emt 0:00:10]} axb5 {[%emt 0:00:12]} 33. Re5 {[%emt 0:00:18]} Rc8 {[%emt 0:02:06]} 34. Kg3 {[%emt 0:03:33]} b4 {[%emt 0:01:48]} 35. cxb4 {[%emt 0:00:28]} cxb4 {[%emt 0:00:11]} 36. Rb5 {[%emt 0:00:26]} b3 {[%emt 0:01:39]} 37. Rb6+ {[%emt 0:05:43]} Kf5 {[%emt 0:01:02]} 38. Re2 {[%emt 0:01:15]} Rd5 {[%emt 0:00:59]} 39. Ree6 {[%emt 0:05:16]} bxc2 {[%emt 0:00:28]} 40. Re1 {[%emt 0:01:35]} Ra8 {[%emt 0:00:39]} 41. Rc6 {[%emt 0:01:25]} Ra3+ {[%emt 0:00:21]} 42. Kf2 {[%emt 0:00:36]} Kxf4 {[%emt 0:00:38]} 43. Rxc4+ {[%emt 0:00:21]} Kf5 {[%emt 0:00:27]} 44. Rxc2 {[%emt 0:00:25]} Rxh3 {[%emt 0:00:17]} 45. Kg2 {[%emt 0:00:22]} Rh4 {[%emt 0:00:37]} 46. Rf2+ {[%emt 0:00:30]} Rf4 {[%emt 0:00:29]} 47. Rxf4+ {[%emt 0:00:39]} Kxf4 {[%emt 0:00:08]} 48. Re2 {[%emt 0:00:30] Ke5 [%emt 00:01:55]} 1/2-1/2